bitfinex-derivatives/quotes_SOLF0:USTF0_20250310
["timestamp","ask_amount","ask_price","bid_price","bid_amount"]
[1741619621161,63.10532306,122.38,122.29,192.0]
[1741619621356,63.10532306,122.38,122.27,88.2259828]
[1741619621357,8.1763,122.33,122.27,88.2259828]
[1741619621562,386.14532306,122.35,122.27,88.2259828]
[1741619621859,386.14532306,122.35,122.28,62.0]
[1741619622059,0.05345085,122.32,122.3,0.05738028]
[1741619622562,8.1774,122.31,122.3,0.05738028]
[1741619623157,63.10532306,122.31,122.25,109.88264568]
[1741619623557,63.10532306,122.33,122.25,109.88264568]
[1741619624353,0.0629943,122.3,122.28,0.05962432]
[1741619624557,63.10532306,122.29,122.28,0.05962432]
[1741619624756,63.10532306,122.29,122.25,109.88264568]
[1741619625159,8.1795,122.28,122.25,109.88264568]
[1741619625362,63.10532306,122.29,122.25,109.88264568]
[1741619625759,8.1802,122.27,122.25,109.88264568]
[1741619625966,63.10532306,122.29,122.26,0.06126767]
[1741619626167,63.16790312,122.27,122.26,0.06126767]
[1741619626363,63.10532306,122.27,122.26,0.06126767]
[1741619626558,0.05573985,122.28,122.26,0.06126767]
[1741619626760,63.10532306,122.29,122.26,0.06126767]
[1741619627070,71.28532306,122.27,122.26,0.06126767]
[1741619627667,0.05934834,122.28,122.26,0.06126767]
[1741619628170,8.18,122.27,122.26,0.06126767]
[1741619628359,0.05934834,122.28,122.26,0.06126767]
[1741619628563,63.10532306,122.27,122.26,0.06126767]
[1741619628773,71.28532306,122.27,122.26,0.06126767]
[1741619628964,0.05934834,122.28,122.26,0.06126767]
[1741619629469,63.1646714,122.28,122.26,0.06126767]
[1741619629866,0.05934834,122.28,122.26,0.06126767]
[1741619632068,63.10532306,122.33,122.26,0.06126767]
[1741619632264,332.66532306,122.35,122.26,0.06126767]
[1741619632462,332.66532306,122.35,122.25,4.0363]
[1741619633165,63.10532306,122.33,122.25,4.0363]
[1741619633362,8.178,122.3,122.29,0.0594944]
[1741619633763,63.16824074,122.31,122.29,0.0594944]
[1741619633764,71.34584074,122.31,122.29,0.0594944]
[1741619633967,63.16824074,122.31,122.29,0.0594944]
[1741619634369,8.178,122.3,122.29,0.0594944]
[1741619635275,8.1798,122.28,122.25,4.0363]
[1741619635868,63.10532306,122.29,122.25,4.0363]
[1741619636265,0.05655977,122.28,122.26,0.05234219]
[1741619636466,63.10532306,122.31,122.26,0.05234219]
[1741619636668,0.06113673,122.28,122.26,0.05234219]
[1741619637070,63.10532306,122.27,122.2,128.41645288]
[1741619637279,63.10532306,122.27,122.2,120.23205288]
[1741619637572,8.1814,122.25,122.21,8.1835]
[1741619637968,63.10532306,122.23,122.2,120.23205288]
[1741619638174,8.1841,122.21,122.2,120.23205288]
[1741619638372,332.92532306,122.21,122.18,132.33897421]
[1741619638676,8.1861,122.18,122.17,220.56495701]
[1741619638973,63.10532306,122.19,122.14,89.70577525]
[1741619639177,332.92532306,122.21,122.14,89.70577525]
[1741619639574,0.06221242,122.19,122.16,0.0611401]
[1741619640172,63.10532306,122.25,122.17,62.0]
[1741619640373,323.22,122.26,122.17,66.225]
[1741619640676,63.10532306,122.25,122.18,53.38]
[1741619640871,269.82,122.26,122.18,57.3306]
[1741619641077,63.10532306,122.29,122.18,120.43592306]
[1741619641576,63.10532306,122.34,122.24,63.10532306]
[1741619641779,63.10532306,122.34,122.25,57.5128]
[1741619642173,63.10532306,122.34,122.26,3.9506]
[1741619642577,8.177,122.32,122.27,8.1798]
[1741619642878,0.05681999,122.31,122.29,0.0520054]
[1741619643071,11.11972574,122.36,122.3,61.5578]
[1741619643275,11.11972574,122.36,122.3,53.38]
[1741619643774,11.11972574,122.36,122.31,8.1772]
[1741619643976,11.11972574,122.36,122.3,53.38]
[1741619644169,11.11972574,122.36,122.26,67.05592306]
[1741619644376,0.05977926,122.34,122.32,0.05242394]
[1741619644874,63.16510232,122.34,122.28,62.0]
[1741619645081,63.10532306,122.29,122.23,4.1117]
[1741619645379,269.82,122.33,122.2,61.6481]
[1741619645380,63.10532306,122.27,122.2,61.6481]
[1741619645573,63.10532306,122.29,122.21,4.1117]
[1741619645774,8.1806,122.27,122.21,12.2953]
[1741619646079,0.05723338,122.25,122.23,0.05212371]
[1741619646274,8.1821,122.24,122.23,0.05212371]
[1741619646475,269.82,122.24,122.15,12.3998]
[1741619646675,63.10532306,122.21,122.15,12.3998]
[1741619646875,8.1855,122.19,122.15,12.3998]
[1741619647070,63.10532306,122.23,122.15,12.3998]
[1741619647583,8.1839,122.22,122.15,12.3998]
[1741619647877,8.24725634,122.2,122.18,0.06203355]
[1741619648078,0.06205634,122.2,122.18,0.06203355]
[1741619648481,8.1854,122.19,122.18,0.06203355]
[1741619648676,0.06205634,122.2,122.18,0.06203355]
[1741619649077,67.72183038,122.19,122.18,3.355e-05]
[1741619649777,63.10532306,122.19,122.11,3.9478]
[1741619649977,63.10532306,122.17,122.11,3.9478]
[1741619650578,63.10532306,122.15,122.08,57.4207]
[1741619651085,0.05164612,122.13,122.1,0.06147043]
[1741619651579,8.1908,122.11,122.1,0.00156389]
[1741619651782,8.1908,122.11,122.02,20.4828]
[1741619651783,63.10532306,122.11,122.02,20.4828]
[1741619651975,63.10532306,122.09,122.02,8.294]
[1741619652177,63.10532306,122.07,122.02,8.294]
[1741619652381,63.10532306,122.09,122.02,8.294]
[1741619652875,482.0,122.89,122.08,63.10532306]
[1741619652876,192.0,122.3,122.08,63.10532306]
[1741619653076,63.10532306,122.27,122.14,63.10532306]
[1741619653276,63.10532306,122.27,122.16,63.10532306]
[1741619653479,8.1792,122.29,122.19,63.16498618]
[1741619653685,63.10532306,122.31,122.19,63.16498618]
[1741619653887,63.10532306,122.31,122.19,71.29062306]
[1741619654286,63.10532306,122.31,122.19,63.10532306]
[1741619654587,8.23820869,122.26,122.24,0.05910475]
[1741619654982,333.14532306,122.25,122.16,53.32]
[1741619655182,8.1844,122.21,122.13,53.32]
[1741619655382,63.10532306,122.23,122.12,63.10532306]
[1741619655582,63.10532306,122.23,122.13,53.32]
[1741619655789,8.1833,122.23,122.13,53.32]
[1741619655992,3.9852,122.24,122.14,63.10532306]
[1741619656184,3.9852,122.24,122.16,63.10532306]
[1741619656385,0.06045485,122.2,122.18,0.06103586]
[1741619656781,0.06045485,122.2,122.18,116.48635892]
[1741619657184,270.04,122.25,122.18,116.48635892]
[1741619657390,323.36,122.31,122.2,63.10532306]
[1741619657783,8.1781,122.3,122.22,63.10532306]
[1741619657981,270.06,122.31,122.22,63.10532306]
[1741619657982,270.06,122.31,122.23,115.3]
[1741619658591,0.05805361,122.28,122.26,0.05852568]
[1741619660086,8.18,122.27,122.26,0.05852568]
[1741619660290,0.05805361,122.28,122.26,0.05852568]
[1741619660594,57.99993081,122.42,122.26,0.05852568]
[1741619660595,270.0,122.36,122.26,63.16384874]
[1741619660789,270.0,122.36,122.28,63.10532306]
[1741619660988,270.0,122.36,122.28,116.38532306]
[1741619661896,0.05670487,122.33,122.31,0.06270945]
[1741619662291,63.10532306,122.32,122.22,116.34532306]
[1741619662499,63.10532306,122.32,122.22,53.24]
[1741619662684,8.1792,122.29,122.23,8.1827]
[1741619662890,116.34532306,122.34,122.22,116.34532306]
[1741619663193,8.1795,122.28,122.22,124.52832306]
[1741619663393,0.0590096,122.29,122.27,0.05786646]
[1741619663596,116.34532306,122.34,122.23,62.0]
[1741619663786,0.05853241,122.29,122.27,0.06121575]
[1741619663987,116.34532306,122.34,122.27,0.06121575]
[1741619664191,0.06134458,122.29,122.27,0.06121575]
[1741619664491,116.34532306,122.34,122.27,0.06121575]
[1741619664686,0.0517637,122.29,122.27,0.06121575]
[1741619664892,0.05665516,122.29,122.27,0.06121575]
[1741619665086,8.1794,122.28,122.27,0.06121575]
[1741619665296,0.05665516,122.29,122.27,0.06121575]
[1741619666598,0.05665516,122.29,122.27,53.28121575]
[1741619667196,8.1794,122.28,122.27,0.06121575]
[1741619667699,0.05665516,122.29,122.27,0.06121575]
[1741619668293,8.23555516,122.29,122.27,0.06121575]
[1741619668489,0.05665516,122.29,122.27,0.06121575]
[1741619668899,4.036,122.35,122.27,4.27901575]
[1741619669101,270.0,122.36,122.27,4.2178]
[1741619669300,4.01,122.39,122.3,8.1776]
[1741619669490,11.11972574,122.43,122.33,63.10532306]
[1741619669697,11.11972574,122.43,122.35,63.10532306]
[1741619669993,11.11972574,122.43,122.37,63.10532306]
[1741619670197,0.05885033,122.4,122.38,0.05715708]
[1741619670397,11.11972574,122.43,122.39,8.172]
[1741619670595,11.11972574,122.43,122.39,63.10532306]
[1741619670793,188.41928322,122.46,122.41,63.10532306]
[1741619670996,45.76997054,122.45,122.42,57.3978]
[1741619671399,45.76997054,122.45,122.42,4.2178]
[1741619671604,45.82980839,122.45,122.42,4.27133325]
[1741619672103,0.05983785,122.45,122.42,4.27133325]
[1741619672503,0.05983785,122.45,122.42,66.27133325]
[1741619673209,8.1694,122.43,122.42,0.05353325]
[1741619673408,0.05983785,122.45,122.42,0.05353325]
[1741619676097,0.05983785,122.45,122.43,62.0]
[1741619676808,8.1658,122.49,122.44,8.1686]
[1741619677109,63.10532306,122.54,122.45,53.1]
[1741619677406,8.1674,122.46,122.45,53.1]
[1741619678608,8.168,122.45,122.44,0.05315846]
[1741619680508,63.10532306,122.46,122.38,4.0134]
[1741619680700,0.05623229,122.47,122.4,8.1712]
[1741619680902,4.3663,122.53,122.43,63.10532306]
[1741619681110,4.3663,122.53,122.45,63.10532306]
[1741619681303,4.3663,122.53,122.46,53.04]
[1741619681708,0.05474545,122.51,122.48,0.0516573]
[1741619682607,8.1651,122.5,122.48,0.0516573]
[1741619682809,0.05474545,122.51,122.48,0.0516573]
[1741619683709,0.05474545,122.51,122.48,5.73e-05]
[1741619684409,63.16006851,122.51,122.48,5.73e-05]
[1741619684610,8.1654,122.49,122.48,5.73e-05]
[1741619684814,71.27072306,122.49,122.48,5.73e-05]
[1741619685108,277.6654,122.49,122.48,5.73e-05]
[1741619685605,277.6654,122.49,122.38,4.217]
[1741619685606,335.04532306,122.49,122.38,4.217]
[1741619685799,63.10532306,122.45,122.38,4.217]
[1741619685999,8.1719,122.4,122.38,4.217]
[1741619686206,63.10532306,122.45,122.38,4.217]
[1741619686405,3.9638,122.44,122.38,4.217]
[1741619686607,8.172,122.39,122.38,4.217]
[1741619687308,0.05174105,122.4,122.38,4.217]
[1741619687909,0.05174105,122.4,122.38,4.26959468]
[1741619688310,8.1705,122.42,122.38,4.26959468]
[1741619688610,8.1705,122.42,122.38,4.217]
[1741619688809,7.9656,122.48,122.39,63.10532306]
[1741619689114,3.9638,122.48,122.4,52.96]
[1741619689614,0.05835676,122.45,122.42,0.06084373]
[1741619689815,8.1694,122.43,122.42,0.06084373]
[1741619690111,0.05835676,122.45,122.42,0.06084373]
[1741619690312,8.1694,122.43,122.42,0.06084373]
[1741619690909,63.16367982,122.45,122.35,4.0363]
[1741619690910,8.1734,122.37,122.35,4.0363]
[1741619691110,63.10532306,122.45,122.35,4.0363]
[1741619691410,8.1719,122.4,122.35,12.2109]
[1741619691713,63.10532306,122.45,122.35,12.2109]
[1741619691714,63.10532306,122.45,122.35,4.0363]
[1741619692114,0.05929507,122.42,122.39,0.05640714]
[1741619692412,8.1714,122.4,122.39,0.05640714]
[1741619692709,8.1714,122.4,122.31,8.1771]
[1741619692710,63.10532306,122.41,122.3,4.1996]
[1741619692909,63.10532306,122.41,122.3,57.1396]
[1741619693106,63.10532306,122.41,122.3,65.3171]
[1741619693308,63.10532306,122.41,122.3,57.1396]
[1741619693508,63.10532306,122.41,122.31,4.0007]
[1741619693708,63.10532306,122.39,122.31,4.0007]
[1741619693913,0.05234294,122.37,122.35,9.41e-06]
[1741619694112,8.174,122.36,122.35,9.41e-06]
[1741619694613,10.634,122.36,122.35,9.41e-06]
[1741619694807,14.8088,122.36,122.35,9.41e-06]
[1741619695008,63.10532306,122.29,122.18,255.10532306]
[1741619695208,63.10532306,122.29,122.21,52.92]
[1741619695413,8.1825,122.24,122.21,52.92]
[1741619695609,63.10532306,122.29,122.22,62.0]
[1741619695809,63.10532306,122.27,122.22,62.0]
[1741619696011,63.10532306,122.25,122.19,4.0007]
[1741619696217,63.10532306,122.25,122.24,7.951e-05]
[1741619696511,8.1847,122.2,122.19,4.0007]
[1741619696716,63.10532306,122.23,122.16,142.80207073]
[1741619696910,4.1459,122.26,122.16,142.80207073]
[1741619697111,8.1857,122.19,122.16,142.80207073]
[1741619697412,0.05817387,122.22,122.2,0.06078195]
[1741619697615,8.1867,122.17,122.16,89.88207073]
[1741619697812,63.10532306,122.2,122.16,89.88207073]
[1741619698012,63.10532306,122.22,122.16,89.88207073]
[1741619698212,63.10532306,122.22,122.13,4.0055]
[1741619698412,4.0583,122.25,122.13,4.0055]
[1741619698817,8.1854,122.19,122.18,0.06240525]
[1741619699010,0.05224702,122.2,122.18,0.06240525]
[1741619699214,4.0583,122.25,122.18,0.06240525]
[1741619699408,0.06159195,122.2,122.18,63.16772831]
[1741619699717,4.0621,122.3,122.19,63.10532306]
[1741619699911,4.0621,122.3,122.17,244.92]
[1741619699912,4.0621,122.3,122.21,63.10532306]
[1741619700117,322.64,122.37,122.23,63.10532306]
[1741619700316,63.10532306,122.35,122.23,63.10532306]
[1741619700518,63.10532306,122.33,122.22,57.1145]
[1741619700718,0.06049002,122.3,122.28,0.05428462]
[1741619700922,0.06049002,122.3,122.22,4.1945]
[1741619700923,8.182,122.25,122.22,4.1945]
[1741619701219,63.10532306,122.29,122.22,4.1945]
[1741619701616,63.10532306,122.27,122.19,52.92]
[1741619701915,63.10532306,122.23,122.17,8.3986]
[1741619702115,63.10532306,122.29,122.18,63.10532306]
[1741619702316,0.05545819,122.24,122.22,0.05831065]
[1741619702518,8.1827,122.23,122.22,0.05831065]
[1741619702817,8.1827,122.23,122.17,8.3986]
[1741619702818,63.10532306,122.23,122.21,0.05994369]
[1741619703016,8.1834,122.22,122.21,4.369e-05]
[1741619703413,8.1832,122.23,122.21,4.369e-05]
[1741619703617,63.10532306,122.28,122.21,4.369e-05]
[1741619704211,0.0601151,122.26,122.21,4.369e-05]
[1741619704411,63.16543816,122.26,122.21,4.369e-05]
[1741619704615,116.06543816,122.26,122.21,4.369e-05]
[1741619704816,63.10532306,122.24,122.21,4.369e-05]
[1741619705020,0.0601151,122.26,122.21,4.369e-05]
[1741619705021,71.28872306,122.22,122.21,4.369e-05]
[1741619706024,335.38532306,122.22,122.12,3.9728]
[1741619706219,63.10532306,122.2,122.12,3.9728]
[1741619706621,4.0885,122.21,122.13,8.1888]
[1741619706815,4.0885,122.21,122.13,52.9]
[1741619707224,0.05835045,122.18,122.16,0.05292253]
[1741619707723,67.17472306,122.26,122.16,0.05292253]
[1741619708119,67.17472306,122.26,122.16,63.10532306]
[1741619708321,67.17472306,122.26,122.17,4.0115]
[1741619708322,4.0694,122.26,122.17,4.0115]
[1741619708525,4.0694,122.26,122.18,52.9]
[1741619708820,63.10532306,122.28,122.19,62.0]
[1741619709025,0.05372119,122.23,122.21,0.0597376]
[1741619709425,67.17472306,122.28,122.21,0.0597376]
[1741619709626,8.1834,122.22,122.21,0.0597376]
[1741619709823,71.28872306,122.22,122.11,4.1739]
[1741619710024,71.28872306,122.22,122.07,192.89785206]
[1741619710025,63.10532306,122.18,122.1,52.88]
[1741619710323,63.10532306,122.2,122.12,12.1623]
[1741619710523,63.10532306,122.2,122.12,3.9728]
[1741619711117,8.1874,122.16,122.15,0.05729448]
[1741619711827,8.1874,122.16,122.15,9.448e-05]
[1741619712025,71.29272306,122.16,122.15,9.448e-05]
[1741619713920,128.67064612,122.16,122.06,4.293]
[1741619714121,8.1934,122.07,122.02,8.1966]
[1741619714329,63.10532306,122.1,122.01,52.88]
[1741619714731,8.1943,122.06,122.02,8.1963]
[1741619715029,52.86,122.06,121.96,63.10532306]
[1741619715230,52.86,122.06,121.96,8.2007]
[1741619715231,63.10532306,122.04,121.96,8.2007]
[1741619715436,63.10532306,122.04,121.94,63.10532306]
[1741619715622,63.10532306,122.04,121.93,12.5032]
[1741619715828,63.10532306,122.02,121.94,62.0]
[1741619716133,8.1966,122.03,121.97,8.1997]
[1741619716430,0.05957394,121.99,121.97,0.05842272]
[1741619716824,63.10532306,122.02,121.93,12.5032]
[1741619717026,0.0539448,121.99,121.97,0.05590007]
[1741619717221,4.0495,122.05,121.97,52.93590007]
[1741619717529,4.0495,122.05,121.97,52.88]
[1741619718326,0.05850447,122.02,122.0,0.05974585]
[1741619719028,8.1975,122.01,122.0,0.05974585]
[1741619719226,0.05850447,122.02,122.0,0.05974585]
[1741619719421,8.1975,122.01,122.0,0.05974585]
[1741619719622,0.05850447,122.02,122.0,0.05974585]
[1741619720032,67.05742306,122.08,122.0,0.05974585]
[1741619720231,3.9521,122.08,122.0,0.05974585]
[1741619720432,3.9521,122.08,121.98,63.10532306]
[1741619720628,3.9521,122.08,122.0,63.10532306]
[1741619720931,4.056,122.14,122.04,63.10532306]
[1741619721122,63.10532306,122.18,122.08,63.10532306]
[1741619721320,270.2,122.21,122.08,63.16321232]
[1741619721321,0.05974899,122.1,122.08,63.16321232]
[1741619721521,0.05974899,122.1,122.05,56.9303]
[1741619721834,0.05207592,122.1,122.08,0.05651052]
[1741619722924,63.10532306,122.18,122.08,0.05651052]
[1741619723126,8.187,122.17,122.11,8.1902]
[1741619723324,67.48032306,122.2,122.11,52.84]
[1741619723529,4.0496,122.23,122.12,63.10532306]
[1741619723727,4.3635,122.22,122.12,67.22232306]
[1741619724129,0.06294977,122.18,122.16,0.05488977]
[1741619724330,0.06294977,122.18,122.16,52.89488977]
[1741619724629,63.10532306,122.26,122.16,52.89488977]
[1741619724830,8.544,122.27,122.16,116.00021283]
[1741619725136,4.3635,122.27,122.16,115.94532306]
[1741619725331,8.1818,122.25,122.19,8.1852]
[1741619725636,4.1805,122.31,122.2,63.10532306]
[1741619725832,0.06116865,122.23,122.21,56.989148]
[1741619726033,63.10532306,122.3,122.21,56.989148]
[1741619726229,63.10532306,122.3,122.21,56.937]
[1741619726434,67.46882306,122.32,122.23,8.1827]
[1741619726629,67.46882306,122.32,122.24,62.0]
[1741619726933,67.46882306,122.32,122.25,8.1809]
[1741619727136,4.3635,122.32,122.24,62.0]
[1741619727330,0.05803826,122.29,122.27,0.05323041]
[1741619727532,8.23693826,122.29,122.27,0.05323041]
[1741619727727,270.14,122.33,122.27,0.05323041]
[1741619728639,63.10532306,122.34,122.27,0.05323041]
[1741619728931,63.10532306,122.34,122.24,62.0]
[1741619728932,63.10532306,122.3,122.24,62.0]
[1741619729137,8.1821,122.24,122.19,60.9654]
[1741619729334,63.10532306,122.28,122.26,0.05257818]
[1741619729534,63.10532306,122.28,122.26,7.818e-05]
[1741619729833,63.10532306,122.28,122.19,52.78]
[1741619730839,63.10532306,122.24,122.15,57.0932]
[1741619731041,63.10532306,122.2,122.12,281.51596857]
[1741619731341,63.10532306,122.2,122.12,142.27596857]
[1741619731835,63.10532306,122.2,122.12,52.76]
[1741619732041,63.10532306,122.2,122.13,62.0]
[1741619732242,0.05967321,122.17,122.13,62.0]
[1741619732443,63.10532306,122.16,122.08,52.74]
[1741619732847,63.10532306,122.2,122.08,115.84532306]
[1741619733043,63.10532306,122.2,122.09,4.2157]
[1741619733438,63.10532306,122.2,122.1,63.10532306]
[1741619733633,63.10532306,122.22,122.1,63.10532306]
[1741619733838,8.24551381,122.16,122.14,0.05193577]
[1741619734148,63.10532306,122.18,122.09,4.2157]
[1741619734338,0.06016929,122.16,122.14,0.05677689]
[1741619735246,63.16549235,122.16,122.14,7.689e-05]
[1741619735446,4.1243,122.15,122.06,4.2721]
[1741619736042,63.10532306,122.2,122.1,63.10532306]
[1741619736247,63.10532306,122.2,122.11,57.0329]
[1741619736442,4.1243,122.21,122.11,57.0329]
[1741619736749,0.05679363,122.17,122.14,0.05656803]
[1741619737341,63.10532306,122.24,122.14,0.05656803]
[1741619737544,63.10532306,122.24,122.12,63.10532306]
[1741619737747,8.1823,122.24,122.14,63.10532306]
[1741619737956,63.10532306,122.28,122.16,63.10532306]
[1741619738252,63.10532306,122.3,122.18,63.10532306]
[1741619738446,4.0216,122.31,122.23,8.1822]
[1741619738749,0.05191629,122.25,122.24,52.7]
[1741619738944,270.04,122.33,122.26,0.0557572]
[1741619739150,0.06020339,122.27,122.26,0.0557572]
[1741619739449,270.04,122.33,122.25,0.05624139]
[1741619739648,63.10532306,122.32,122.25,0.05624139]
[1741619739953,63.10532306,122.28,122.21,56.8193]
[1741619740143,63.10532306,122.28,122.21,52.68]
[1741619740452,0.06176241,122.26,122.23,0.05583359]
[1741619741454,63.16708547,122.26,122.23,0.05583359]
[1741619741655,63.10532306,122.24,122.15,4.0373]
[1741619741858,63.10532306,122.2,122.12,52.66]
[1741619742244,63.10532306,122.22,122.12,52.66]
[1741619742656,269.96,122.26,122.15,8.1875]
[1741619742657,8.1848,122.2,122.15,8.1875]
[1741619742855,63.10532306,122.24,122.13,8.0166]
[1741619743052,0.0628803,122.18,122.16,0.05957609]
[1741619743454,63.10532306,122.28,122.17,52.64]
[1741619743648,7.33e-06,122.18,122.17,60.8267]
[1741619743958,63.10532306,122.33,122.17,518.56513409]
[1741619744153,63.10532306,122.33,122.23,63.10532306]
[1741619744353,63.10532306,122.33,122.25,8.1813]
[1741619744554,63.10532306,122.33,122.24,56.9876]
[1741619744755,63.10532306,122.33,122.26,62.0]
[1741619744961,0.06075106,122.3,122.27,0.05463535]
[1741619745158,63.10532306,122.29,122.27,3.535e-05]
[1741619745359,8.1798,122.28,122.27,3.535e-05]
[1741619745556,0.06075106,122.3,122.27,3.535e-05]
[1741619745755,8.1794,122.28,122.27,3.535e-05]
[1741619746159,0.06075106,122.3,122.27,3.535e-05]
[1741619746850,8.1794,122.28,122.27,3.535e-05]
[1741619747352,71.28472306,122.28,122.27,3.535e-05]
[1741619747763,8.1841,122.21,122.19,4.3476]
[1741619748058,63.10532306,122.25,122.19,4.3476]
[1741619748254,63.10532306,122.21,122.11,63.10532306]
[1741619748460,63.10532306,122.21,122.13,8.189]
[1741619748658,8.1872,122.17,122.12,116.23773337]
[1741619748862,0.05176488,122.18,122.16,0.05856372]
[1741619749064,0.05176488,122.18,122.14,8.1885]
[1741619749261,0.05176488,122.18,122.16,0.05544842]
[1741619749460,4.2083,122.24,122.17,52.6]
[1741619750164,67.31362306,122.24,122.17,52.6]
[1741619750367,8.1852,122.2,122.16,56.9061]
[1741619750566,63.10532306,122.22,122.14,52.6]
[1741619750766,0.05969721,122.22,122.19,0.05879597]
[1741619750967,8.1845,122.21,122.14,52.6]
[1741619751159,0.0516877,122.22,122.19,0.05321979]
[1741619751467,0.05165996,122.22,122.19,52.63963561]
[1741619751766,333.04532306,122.28,122.19,52.63963561]
[1741619751968,8.1818,122.25,122.19,52.63963561]
[1741619752170,269.94,122.28,122.19,52.58]
[1741619752458,269.94,122.28,122.19,115.68532306]
[1741619752669,4.3046,122.29,122.2,65.9668]
[1741619752860,0.0525574,122.25,122.22,0.05509779]
[1741619753060,8.1827,122.23,122.22,0.05509779]
[1741619753466,0.0525574,122.25,122.22,0.05509779]
[1741619754661,8.2341574,122.25,122.22,0.05509779]
[1741619754971,0.0525574,122.25,122.22,0.05509779]
[1741619755266,8.1821,122.24,122.22,0.05509779]
[1741619755769,0.0525574,122.25,122.22,0.05509779]
[1741619756263,63.10532306,122.3,122.22,0.05509779]
[1741619756469,4.0246,122.31,122.2,62.0]
[1741619756661,63.10532306,122.29,122.2,62.0]
[1741619757163,67.12992306,122.31,122.2,62.0]
[1741619757372,8.1788,122.29,122.24,8.1821]
[1741619757669,0.05855231,122.27,122.25,52.54]
[1741619759465,8.1807,122.26,122.25,52.54]
[1741619759973,8.1807,122.26,122.24,0.06189583]
[1741619759974,0.05855231,122.27,122.24,0.06189583]
[1741619761271,4.3555,122.35,122.25,63.10532306]
[1741619761666,67.46082306,122.35,122.24,8.56879583]
[1741619761866,63.10532306,122.33,122.24,8.5069]
[1741619762067,63.10532306,122.33,122.25,52.5]
[1741619762263,0.05845071,122.3,122.27,0.06187839]
[1741619762574,0.05845071,122.3,122.25,52.5]
[1741619762769,4.3555,122.35,122.27,0.05446609]
[1741619762970,63.10532306,122.39,122.27,63.15978915]
[1741619763166,8.1757,122.34,122.27,63.10532306]
[1741619763366,63.10532306,122.35,122.25,244.5]
[1741619763571,63.10532306,122.33,122.25,52.5]
[1741619763772,8.1785,122.3,122.26,8.1806]
[1741619763975,8.24084382,122.3,122.28,0.0520493]
[1741619764278,0.06234382,122.3,122.28,0.0520493]
[1741619764976,63.10532306,122.29,122.22,52.48]
[1741619765172,4.163,122.28,122.21,52.48]
[1741619765671,4.163,122.28,122.2,4.0152]
[1741619765873,63.10532306,122.25,122.18,3.9945]
[1741619766072,63.10532306,122.25,122.18,56.4545]
[1741619766267,8.1841,122.21,122.2,0.05251652]
[1741619766477,63.16474264,122.23,122.2,0.05251652]
[1741619766974,4.1241,122.22,122.15,56.6369]
[1741619767171,4.1241,122.22,122.16,62.0]
[1741619767369,4.1241,122.22,122.15,56.6369]
[1741619767772,63.10532306,122.24,122.15,56.6369]
[1741619767967,63.10532306,122.27,122.15,56.6369]
[1741619767968,8.1842,122.21,122.15,52.44]
[1741619768269,0.06251337,122.2,122.15,52.44]
[1741619768474,0.06251337,122.2,122.17,0.05216605]
[1741619769274,63.10532306,122.31,122.19,63.10532306]
[1741619769475,67.39832306,122.31,122.2,52.44]
[1741619769871,63.10532306,122.29,122.2,52.44]
[1741619770074,63.10532306,122.27,122.2,52.44]
[1741619770276,63.10532306,122.27,122.17,114.44]
[1741619770482,0.05418726,122.25,122.22,0.05817875]
[1741619770878,0.05418726,122.25,122.22,52.47817875]
[1741619771681,8.1825,122.24,122.22,0.05817875]
[1741619771880,63.10532306,122.23,122.14,23.13974206]
[1741619772181,63.10532306,122.21,122.14,23.13974206]
[1741619772375,63.10532306,122.23,122.14,4.0492]
[1741619772573,63.10532306,122.23,122.15,8.1877]
[1741619772776,8.5603,122.24,122.14,4.0492]
[1741619772977,0.05856253,122.2,122.18,0.05632813]
[1741619773784,63.16388559,122.2,122.14,4.0492]
[1741619773985,0.05856253,122.2,122.14,4.0492]
[1741619774278,0.05856253,122.2,122.15,52.42]
[1741619774472,0.05856253,122.2,122.15,56.4728]
[1741619774677,0.05856253,122.2,122.16,8.187]
[1741619774886,0.05856253,122.2,122.15,56.4728]
[1741619775072,0.05856253,122.2,122.17,0.05600816]
[1741619775276,4.3634,122.28,122.18,63.10532306]
[1741619775880,269.92,122.3,122.2,63.10532306]
[1741619776084,269.92,122.3,122.21,56.7653]
[1741619776485,0.05941675,122.26,122.24,0.05632276]
[1741619776784,269.92,122.3,122.24,0.05632276]
[1741619777283,63.10532306,122.29,122.24,0.05632276]
[1741619777490,8.1811,122.26,122.24,0.05632276]
[1741619777978,8.1811,122.26,122.16,23.49545639]